[Event "*** Titled Tuesday Blitz"]
[Site "Chess.com"]
[Date "2019.01.01"]
[Round "6"]
[White "Winehouse83"]
[Black "DrMelekess"]
[Result "0-1"]
[WhiteElo "2407"]
[BlackElo "2588"]
[TimeControl "180+2"]
[EndTime "14:26:31 PST"]
[Termination "DrMelekess won by resignation"]

1. d4 {[%clk 0:03:01.9]} 1... Nf6 {[%clk 0:02:55.7]} 2. c4 {[%clk 0:03:03.1]}
2... e6 {[%clk 0:02:50.3]} 3. Nf3 {[%clk 0:03:02.6]} 3... b6 {[%clk 0:02:50.9]}
4. a3 {[%clk 0:03:03.2]} 4... Bb7 {[%clk 0:02:50.5]} 5. Nc3 {[%clk 0:03:04.2]}
5... d5 {[%clk 0:02:44.5]} 6. cxd5 {[%clk 0:03:04.8]} 6... exd5 {[%clk
0:02:42.3]} 7. g3 {[%clk 0:03:04.7]} 7... Bd6 {[%clk 0:02:35.2]} 8. Bg2 {[%clk
0:03:04.8]} 8... a6 {[%clk 0:02:35]} 9. b4 {[%clk 0:03:04]} 9... O-O {[%clk
0:02:34.7]} 10. O-O {[%clk 0:03:04.2]} 10... Nbd7 {[%clk 0:02:28.9]} 11. Bf4
{[%clk 0:02:56.8]} 11... Qe7 {[%clk 0:02:22.2]} 12. Qc1 {[%clk 0:02:48.9]} 12...
Ne4 {[%clk 0:01:57.6]} 13. Bxd6 {[%clk 0:02:35.2]} 13... Qxd6 {[%clk 0:01:52.7]}
14. Nd2 {[%clk 0:02:30.7]} 14... Nxc3 {[%clk 0:01:44.8]} 15. Qxc3 {[%clk
0:02:31.3]} 15... Rac8 {[%clk 0:01:39.5]} 16. Rac1 {[%clk 0:02:18.7]} 16... Rfd8
{[%clk 0:01:17.2]} 17. e3 {[%clk 0:02:14.9]} 17... h6 {[%clk 0:01:03.7]} 18.
Rfd1 {[%clk 0:02:13.8]} 18... c6 {[%clk 0:00:33.4]} 19. Bh3 {[%clk 0:02:06.2]}
19... Rc7 {[%clk 0:00:34.2]} 20. a4 {[%clk 0:01:58.1]} 20... Nf6 {[%clk
0:00:28.1]} 21. a5 {[%clk 0:01:58.1]} 21... b5 {[%clk 0:00:29.4]} 22. Qc5 {[%clk
0:01:59]} 22... Qxc5 {[%clk 0:00:30.2]} 23. Rxc5 {[%clk 0:01:58.6]} 23... Bc8
{[%clk 0:00:31.6]} 24. Bxc8 {[%clk 0:01:58]} 24... Rdxc8 {[%clk 0:00:32.6]} 25.
Rdc1 {[%clk 0:01:58.6]} 25... Kf8 {[%clk 0:00:33.1]} 26. Nf3 {[%clk 0:01:53.7]}
26... Ne4 {[%clk 0:00:29.7]} 27. R5c2 {[%clk 0:01:50.4]} 27... Nd6 {[%clk
0:00:31.2]} 28. Ne5 {[%clk 0:01:51.6]} 28... Nc4 {[%clk 0:00:32.3]} 29. Nd3
{[%clk 0:01:52.8]} 29... Ra8 {[%clk 0:00:27.1]} 30. Nc5 {[%clk 0:01:54]} 30...
Re7 {[%clk 0:00:25.3]} 31. Re2 {[%clk 0:01:54.8]} 31... Ke8 {[%clk 0:00:23.8]}
32. Rd1 {[%clk 0:01:53.6]} 32... Kd8 {[%clk 0:00:21.6]} 33. Rd3 {[%clk
0:01:54.7]} 33... Kc7 {[%clk 0:00:22.1]} 34. f3 {[%clk 0:01:53.4]} 34... f5
{[%clk 0:00:21.4]} 35. e4 {[%clk 0:01:47]} 35... fxe4 {[%clk 0:00:22]} 36. fxe4
{[%clk 0:01:48.9]} 36... dxe4 {[%clk 0:00:23.5]} 37. Rxe4 {[%clk 0:01:50.5]}
37... Rxe4 {[%clk 0:00:24.3]} 38. Nxe4 {[%clk 0:01:51.8]} 38... Kd7 {[%clk
0:00:07.5]} 39. Nc5+ {[%clk 0:01:48.3]} 39... Kd6 {[%clk 0:00:08.3]} 40. h4
{[%clk 0:01:38]} 40... Kd5 {[%clk 0:00:09.1]} 41. h5 {[%clk 0:01:38.4]} 41...
Nd6 {[%clk 0:00:10.4]} 42. Nd7 {[%clk 0:01:34.5]} 42... Kc4 {[%clk 0:00:07.2]}
43. Re3 {[%clk 0:01:25.6]} 43... Rd8 {[%clk 0:00:06.8]} 44. Nc5 {[%clk
0:01:21.7]} 44... Kxb4 {[%clk 0:00:06.2]} 45. Nxa6+ {[%clk 0:01:21.6]} 45...
Kxa5 {[%clk 0:00:07.5]} 46. Nc5 {[%clk 0:01:23.3]} 46... Kb4 {[%clk 0:00:07.9]}
47. Re7 {[%clk 0:01:21.9]} 47... Nf5 {[%clk 0:00:09]} 48. Nd3+ {[%clk
0:01:18.4]} 48... Kc3 {[%clk 0:00:08.9]} 49. Ne5 {[%clk 0:01:12.4]} 49... Nxe7
{[%clk 0:00:08.7]} 0-1

[Event "*** Titled Tuesday Blitz"]
[Site "Chess.com"]
[Date "2019.01.01"]
[Round "6"]
[White "JSMastropiero"]
[Black "BrianWall"]
[Result "0-1"]
[WhiteElo "2282"]
[BlackElo "2162"]
[TimeControl "180+2"]
[EndTime "14:26:32 PST"]
[Termination "BrianWall won by resignation"]

1. d4 {[%clk 0:03:01.9]} 1... Nf6 {[%clk 0:02:59.6]} 2. c4 {[%clk 0:03:01.6]}
2... e6 {[%clk 0:02:57.4]} 3. g3 {[%clk 0:03:01.7]} 3... Bb4+ {[%clk 0:02:57.6]}
4. Bd2 {[%clk 0:03:01.7]} 4... Bxd2+ {[%clk 0:02:58.4]} 5. Nxd2 {[%clk
0:03:00.2]} 5... O-O {[%clk 0:02:59.1]} 6. Bg2 {[%clk 0:02:59.6]} 6... c5 {[%clk
0:02:58]} 7. Ngf3 {[%clk 0:02:53.5]} 7... cxd4 {[%clk 0:02:58.5]} 8. Nxd4 {[%clk
0:02:52]} 8... Nc6 {[%clk 0:02:59.4]} 9. N2b3 {[%clk 0:02:42.4]} 9... d5 {[%clk
0:02:58.9]} 10. cxd5 {[%clk 0:02:38.9]} 10... exd5 {[%clk 0:02:59.1]} 11. O-O
{[%clk 0:02:38]} 11... Re8 {[%clk 0:02:58.9]} 12. Nxc6 {[%clk 0:02:35.2]} 12...
bxc6 {[%clk 0:02:59.1]} 13. Rc1 {[%clk 0:02:36.7]} 13... Bg4 {[%clk 0:02:55.4]}
14. Re1 {[%clk 0:02:31.4]} 14... Qb6 {[%clk 0:02:55.6]} 15. h3 {[%clk 0:02:17]}
15... Bf5 {[%clk 0:02:50.8]} 16. Nd4 {[%clk 0:02:09.5]} 16... Bd7 {[%clk
0:02:49.7]} 17. b3 {[%clk 0:01:39.2]} 17... a5 {[%clk 0:02:49.4]} 18. Qd2 {[%clk
0:01:32.2]} 18... c5 {[%clk 0:02:42.6]} 19. Nf3 {[%clk 0:01:28.9]} 19... a4
{[%clk 0:02:39.1]} 20. bxa4 {[%clk 0:01:25.5]} 20... Rxa4 {[%clk 0:02:37.9]} 21.
Rb1 {[%clk 0:01:24.3]} 21... Qa5 {[%clk 0:02:23.8]} 22. Rb2 {[%clk 0:01:09.4]}
22... d4 {[%clk 0:02:19.9]} 23. Rc1 {[%clk 0:01:06.2]} 23... Be6 {[%clk
0:02:18.8]} 24. Ng5 {[%clk 0:00:59.6]} 24... Bxa2 {[%clk 0:02:18]} 25. Bc6
{[%clk 0:00:50.6]} 25... Qxd2 {[%clk 0:01:55.5]} 26. Rxd2 {[%clk 0:00:50.5]}
26... Raa8 {[%clk 0:01:52.6]} 27. Bxa8 {[%clk 0:00:49.3]} 27... Rxa8 {[%clk
0:01:52.3]} 28. Ra1 {[%clk 0:00:49.8]} 28... Bd5 {[%clk 0:01:49.3]} 29. Rxa8+
{[%clk 0:00:49.9]} 29... Bxa8 {[%clk 0:01:49.9]} 30. Rc2 {[%clk 0:00:51.4]}
30... Nd7 {[%clk 0:01:48.3]} 31. Kf1 {[%clk 0:00:45.5]} 31... h6 {[%clk
0:01:48.7]} 32. Nf3 {[%clk 0:00:46.7]} 32... Bxf3 {[%clk 0:01:48.7]} 33. exf3
{[%clk 0:00:47.7]} 33... Kf8 {[%clk 0:01:49.8]} 34. Ke2 {[%clk 0:00:48.6]} 34...
Ke7 {[%clk 0:01:50.9]} 35. Kd3 {[%clk 0:00:49.6]} 35... Kd6 {[%clk 0:01:51.9]}
36. Kc4 {[%clk 0:00:50.6]} 36... Ne5+ {[%clk 0:01:45.8]} 37. Kb5 {[%clk
0:00:51.1]} 37... c4 {[%clk 0:01:44.9]} 38. Rxc4 {[%clk 0:00:47.3]} 38... Nxc4
{[%clk 0:01:42.2]} 39. Kxc4 {[%clk 0:00:48.6]} 39... Ke5 {[%clk 0:01:43.1]} 40.
Kd3 {[%clk 0:00:47.2]} 40... Kd5 {[%clk 0:01:42.7]} 41. f4 {[%clk 0:00:44.8]}
41... f5 {[%clk 0:01:42.5]} 42. g4 {[%clk 0:00:44.2]} 42... fxg4 {[%clk
0:01:36.9]} 43. hxg4 {[%clk 0:00:45.1]} 43... g6 {[%clk 0:01:38.3]} 44. f3
{[%clk 0:00:33.5]} 44... h5 {[%clk 0:01:38.2]} 45. f5 {[%clk 0:00:31.7]} 45...
h4 {[%clk 0:01:26.6]} 46. fxg6 {[%clk 0:00:32]} 46... Ke6 {[%clk 0:01:25.5]} 47.
f4 {[%clk 0:00:17.7]} 47... h3 {[%clk 0:01:25.3]} 48. g5 {[%clk 0:00:19.2]}
48... h2 {[%clk 0:01:24.9]} 49. f5+ {[%clk 0:00:20.8]} 49... Ke7 {[%clk
0:01:25.2]} 50. f6+ {[%clk 0:00:21.3]} 50... Kf8 {[%clk 0:01:26.1]} 51. Ke4
{[%clk 0:00:20.4]} 51... h1=Q+ {[%clk 0:01:24.9]} 52. Kf5 {[%clk 0:00:21.9]}
52... Qd5+ {[%clk 0:01:23.4]} 53. Kg4 {[%clk 0:00:22.8]} 53... d3 {[%clk
0:01:22]} 54. Kh5 {[%clk 0:00:24.1]} 54... Kg8 {[%clk 0:01:21.1]} 55. g7 {[%clk
0:00:23.3]} 55... Qf7+ {[%clk 0:01:16.9]} 56. Kh6 {[%clk 0:00:24.4]} 56... d2
{[%clk 0:01:14.7]} 57. g6 {[%clk 0:00:21.1]} 57... Qxg7+ {[%clk 0:01:15.3]} 58.
fxg7 {[%clk 0:00:20.9]} 58... d1=R {[%clk 0:01:14.1]} 59. Kg5 {[%clk 0:00:22]}
59... Kxg7 {[%clk 0:01:14.2]} 0-1

[Event "*** Titled Tuesday Blitz"]
[Site "Chess.com"]
[Date "2019.01.01"]
[Round "6"]
[White "jk13"]
[Black "TST2014"]
[Result "1-0"]
[WhiteElo "2708"]
[BlackElo "2488"]
[TimeControl "180+2"]
[EndTime "14:26:36 PST"]
[Termination "jk13 won by checkmate"]

1. e4 {[%clk 0:03:01.9]} 1... c5 {[%clk 0:02:59.7]} 2. c3 {[%clk 0:03:03.3]}
2... Nf6 {[%clk 0:02:59.9]} 3. e5 {[%clk 0:03:04.8]} 3... Nd5 {[%clk 0:03:01]}
4. Bc4 {[%clk 0:03:06.7]} 4... Nb6 {[%clk 0:03:00.4]} 5. Bb3 {[%clk 0:03:08.4]}
5... Nc6 {[%clk 0:03:01.3]} 6. Nf3 {[%clk 0:03:10]} 6... d5 {[%clk 0:03:01.7]}
7. exd6 {[%clk 0:03:11.9]} 7... Qxd6 {[%clk 0:03:02.9]} 8. O-O {[%clk
0:03:12.8]} 8... Be6 {[%clk 0:03:04.4]} 9. Bxe6 {[%clk 0:03:13.3]} 9... Qxe6
{[%clk 0:03:05.5]} 10. a4 {[%clk 0:03:15.2]} 10... Qd7 {[%clk 0:02:55.4]} 11. a5
{[%clk 0:03:16.5]} 11... Nd5 {[%clk 0:02:55.7]} 12. a6 {[%clk 0:03:18.4]} 12...
b6 {[%clk 0:02:54.3]} 13. d4 {[%clk 0:03:20.3]} 13... e6 {[%clk 0:02:54.2]} 14.
Re1 {[%clk 0:03:18.3]} 14... Be7 {[%clk 0:02:53.2]} 15. Ne5 {[%clk 0:03:12.2]}
15... Nxe5 {[%clk 0:02:52.9]} 16. dxe5 {[%clk 0:03:14.1]} 16... Rd8 {[%clk
0:02:48.7]} 17. Qg4 {[%clk 0:03:14.7]} 17... g6 {[%clk 0:02:40.9]} 18. Bh6
{[%clk 0:03:15.2]} 18... Bf8 {[%clk 0:02:40.8]} 19. Bxf8 {[%clk 0:03:10.9]}
19... Kxf8 {[%clk 0:02:41.6]} 20. Nd2 {[%clk 0:03:06.7]} 20... h5 {[%clk
0:02:36]} 21. Qf3 {[%clk 0:03:03.7]} 21... Nxc3 {[%clk 0:02:22.8]} 22. bxc3
{[%clk 0:03:02.6]} 22... Qxd2 {[%clk 0:02:23.5]} 23. Rad1 {[%clk 0:02:48.7]}
23... Qg5 {[%clk 0:02:17.8]} 24. Rxd8+ {[%clk 0:01:58.3]} 24... Qxd8 {[%clk
0:02:16.9]} 25. Rd1 {[%clk 0:02:00.2]} 25... Qe7 {[%clk 0:02:07.6]} 26. Rd6
{[%clk 0:01:09.8]} 26... Kg7 {[%clk 0:02:04]} 27. g3 {[%clk 0:01:11.5]} 27...
Rd8 {[%clk 0:01:49.8]} 28. Qc6 {[%clk 0:01:12.4]} 28... Qg5 {[%clk 0:01:41.5]}
29. h4 {[%clk 0:01:02.6]} 29... Qc1+ {[%clk 0:01:28.5]} 30. Kg2 {[%clk 0:01:04]}
30... Rf8 {[%clk 0:01:23.7]} 31. Rd7 {[%clk 0:01:04]} 31... Qxc3 {[%clk
0:01:22.4]} 32. Qxe6 {[%clk 0:00:41.2]} 32... Qc2 {[%clk 0:01:07.2]} 33. Qf6+
{[%clk 0:00:42.1]} 33... Kg8 {[%clk 0:01:07.6]} 34. Rxa7 {[%clk 0:00:41.5]}
34... Qe4+ {[%clk 0:01:06.6]} 35. Kh2 {[%clk 0:00:42.4]} 35... c4 {[%clk
0:01:04.7]} 36. Re7 {[%clk 0:00:37.5]} 36... Qf5 {[%clk 0:00:40.8]} 37. a7
{[%clk 0:00:31.3]} 37... c3 {[%clk 0:00:41]} 38. Rb7 {[%clk 0:00:15.3]} 38...
Qxf6 {[%clk 0:00:33.6]} 39. exf6 {[%clk 0:00:16.1]} 39... c2 {[%clk 0:00:16.1]}
40. Rb8 {[%clk 0:00:18]} 40... c1=Q {[%clk 0:00:05.6]} 41. Rxf8+ {[%clk
0:00:18.8]} 41... Kh7 {[%clk 0:00:06.7]} 42. a8=Q {[%clk 0:00:19.5]} 42... g5
{[%clk 0:00:03.6]} 43. Qe4+ {[%clk 0:00:17.4]} 43... Kh6 {[%clk 0:00:04.9]} 44.
Rh8# {[%clk 0:00:18.6]} 1-0

[Event "*** Titled Tuesday Blitz"]
[Site "Chess.com"]
[Date "2019.01.01"]
[Round "6"]
[White "Keranke"]
[Black "Korchmar_Vasiliy"]
[Result "0-1"]
[WhiteElo "2756"]
[BlackElo "2797"]
[TimeControl "180+2"]
[EndTime "14:26:42 PST"]
[Termination "Korchmar_Vasiliy won on time"]

1. d4 {[%clk 0:03:01.9]} 1... Nf6 {[%clk 0:02:58.3]} 2. Bf4 {[%clk 0:03:02.3]}
2... d5 {[%clk 0:02:56.1]} 3. e3 {[%clk 0:03:03.7]} 3... c5 {[%clk 0:02:57.3]}
4. Nc3 {[%clk 0:03:04.7]} 4... a6 {[%clk 0:02:57.2]} 5. Nf3 {[%clk 0:03:05.5]}
5... cxd4 {[%clk 0:02:54.5]} 6. exd4 {[%clk 0:03:07.4]} 6... Bg4 {[%clk
0:02:55.8]} 7. h3 {[%clk 0:03:08.2]} 7... Bh5 {[%clk 0:02:56.2]} 8. g4 {[%clk
0:03:07.2]} 8... Bg6 {[%clk 0:02:57]} 9. Ne5 {[%clk 0:03:08.9]} 9... Nc6 {[%clk
0:02:46.4]} 10. h4 {[%clk 0:03:08.9]} 10... Qb6 {[%clk 0:02:06.5]} 11. h5 {[%clk
0:02:23.2]} 11... Be4 {[%clk 0:02:07]} 12. Rh3 {[%clk 0:02:03]} 12... h6 {[%clk
0:01:53.8]} 13. Nxe4 {[%clk 0:01:57.4]} 13... Nxe4 {[%clk 0:01:55.7]} 14. Nxc6
{[%clk 0:01:52.7]} 14... Qxc6 {[%clk 0:01:52.9]} 15. c3 {[%clk 0:01:48.3]} 15...
e6 {[%clk 0:01:51.6]} 16. Bd3 {[%clk 0:01:48.1]} 16... Bd6 {[%clk 0:01:42.3]}
17. Be3 {[%clk 0:01:43.7]} 17... O-O {[%clk 0:01:29.7]} 18. f3 {[%clk
0:01:38.8]} 18... Ng5 {[%clk 0:01:27]} 19. Bxg5 {[%clk 0:01:32.3]} 19... hxg5
{[%clk 0:01:28.9]} 20. Bc2 {[%clk 0:01:30.7]} 20... f5 {[%clk 0:01:09.1]} 21.
Qd3 {[%clk 0:01:23.7]} 21... Bf4 {[%clk 0:01:10.1]} 22. Kf1 {[%clk 0:01:09.8]}
22... b5 {[%clk 0:01:06.8]} 23. Kg2 {[%clk 0:01:08.9]} 23... Rac8 {[%clk
0:01:02.5]} 24. gxf5 {[%clk 0:01:00.7]} 24... exf5 {[%clk 0:01:04.4]} 25. Bb3
{[%clk 0:01:00.2]} 25... Rce8 {[%clk 0:00:59.6]} 26. Rhh1 {[%clk 0:01:00.9]}
26... Re3 {[%clk 0:01:00.3]} 27. Qc2 {[%clk 0:00:56.9]} 27... Qe6 {[%clk
0:00:54.8]} 28. Kf2 {[%clk 0:00:42.4]} 28... Re8 {[%clk 0:00:50.3]} 29. Kg1
{[%clk 0:00:27.5]} 29... Re2 {[%clk 0:00:46.1]} 30. Qd3 {[%clk 0:00:28.5]} 30...
Be3+ {[%clk 0:00:45.6]} 31. Kf1 {[%clk 0:00:28.4]} 31... Rf2+ {[%clk 0:00:45.3]}
32. Ke1 {[%clk 0:00:28.4]} 32... Rxb2 {[%clk 0:00:31.4]} 33. Bc2 {[%clk
0:00:18.1]} 33... Bxd4+ {[%clk 0:00:14.5]} 34. Kf1 {[%clk 0:00:17.2]} 34... Ba7
{[%clk 0:00:12.9]} 35. Rd1 {[%clk 0:00:14.6]} 35... Qb6 {[%clk 0:00:10.6]} 36.
Rd2 {[%clk 0:00:09.8]} 36... Kh8 {[%clk 0:00:04.6]} 37. Qxf5 {[%clk 0:00:08.5]}
37... Qh6 {[%clk 0:00:05.2]} 38. Qxd5 {[%clk 0:00:04.8]} 38... Rf8 {[%clk
0:00:03.2]} 39. Kg2 {[%clk 0:00:02.1]} 39... g4 {[%clk 0:00:02.5]} 40. fxg4
{[%clk 0:00:03.6]} 40... Qf4 {[%clk 0:00:02.6]} 0-1

[Event "*** Titled Tuesday Blitz"]
[Site "Chess.com"]
[Date "2019.01.01"]
[Round "6"]
[White "Shahinyan_ChessMood"]
[Black "Jospem"]
[Result "0-1"]
[WhiteElo "2689"]
[BlackElo "2807"]
[TimeControl "180+2"]
[EndTime "14:26:45 PST"]
[Termination "Jospem won by checkmate"]

1. c4 {[%clk 0:03:01.9]} 1... Nf6 {[%clk 0:03:01]} 2. Nc3 {[%clk 0:02:58.1]}
2... c5 {[%clk 0:03:00.9]} 3. g3 {[%clk 0:02:58.4]} 3... Nc6 {[%clk 0:03:01.2]}
4. Bg2 {[%clk 0:03:00]} 4... d6 {[%clk 0:02:59.1]} 5. e4 {[%clk 0:03:01]} 5...
g6 {[%clk 0:02:59.1]} 6. Nge2 {[%clk 0:03:02.1]} 6... e5 {[%clk 0:03:00.1]} 7.
O-O {[%clk 0:03:02.1]} 7... Bg7 {[%clk 0:03:02]} 8. d3 {[%clk 0:03:03.4]} 8...
O-O {[%clk 0:03:03.4]} 9. h3 {[%clk 0:03:05]} 9... a6 {[%clk 0:03:01.4]} 10. a4
{[%clk 0:03:05.4]} 10... Nd4 {[%clk 0:03:02.6]} 11. f4 {[%clk 0:03:04.9]} 11...
Rb8 {[%clk 0:02:48.8]} 12. g4 {[%clk 0:03:00.6]} 12... exf4 {[%clk 0:02:47.9]}
13. Bxf4 {[%clk 0:02:54.4]} 13... Ne8 {[%clk 0:02:33.6]} 14. Kh1 {[%clk
0:02:07.8]} 14... Nxe2 {[%clk 0:02:29.1]} 15. Qxe2 {[%clk 0:02:06.6]} 15... Nc7
{[%clk 0:02:30.1]} 16. Qd2 {[%clk 0:01:52.7]} 16... Ne6 {[%clk 0:02:27.4]} 17.
Bh6 {[%clk 0:01:53.3]} 17... Nd4 {[%clk 0:02:29]} 18. Bxg7 {[%clk 0:01:45.6]}
18... Kxg7 {[%clk 0:02:30.9]} 19. Ne2 {[%clk 0:01:39.9]} 19... Nc6 {[%clk
0:02:23.9]} 20. g5 {[%clk 0:01:28.3]} 20... Be6 {[%clk 0:02:21]} 21. Rf6 {[%clk
0:01:27.1]} 21... h6 {[%clk 0:02:09.5]} 22. Raf1 {[%clk 0:01:24.9]} 22... Rh8
{[%clk 0:02:06.6]} 23. Nf4 {[%clk 0:01:13]} 23... Nd4 {[%clk 0:01:27]} 24. gxh6+
{[%clk 0:00:46.8]} 24... Kg8 {[%clk 0:01:16.4]} 25. Nxg6 {[%clk 0:00:27.6]}
25... Rh7 {[%clk 0:01:06.7]} 26. Qg5 {[%clk 0:00:27.6]} 26... fxg6 {[%clk
0:01:02.6]} 27. Qxg6+ {[%clk 0:00:26.7]} 27... Kh8 {[%clk 0:01:03.9]} 28. e5
{[%clk 0:00:28]} 28... Qg8 {[%clk 0:00:58.2]} 29. Rxe6 {[%clk 0:00:29.3]} 29...
Qxe6 {[%clk 0:00:49.2]} 30. Rf6 {[%clk 0:00:26.4]} 30... Qg8 {[%clk 0:00:49.8]}
31. Qh5 {[%clk 0:00:17]} 31... Qe8 {[%clk 0:00:39.6]} 32. Qh4 {[%clk 0:00:10.7]}
32... Qxe5 {[%clk 0:00:31.7]} 33. Be4 {[%clk 0:00:11]} 33... Re7 {[%clk
0:00:21.5]} 34. Qf2 {[%clk 0:00:11.9]} 34... Ne6 {[%clk 0:00:14.2]} 35. Rf7
{[%clk 0:00:11]} 35... Rxf7 {[%clk 0:00:11.8]} 36. Qxf7 {[%clk 0:00:12.9]} 36...
Ng5 {[%clk 0:00:13.7]} 37. Qc7 {[%clk 0:00:09.8]} 37... Re8 {[%clk 0:00:11.3]}
38. Bg2 {[%clk 0:00:05.7]} 38... Qe7 {[%clk 0:00:11.3]} 39. Qxb7 {[%clk
0:00:02.9]} 39... Qe1+ {[%clk 0:00:12.8]} 40. Kh2 {[%clk 0:00:03.7]} 40... Qe5+
{[%clk 0:00:14]} 41. Kh1 {[%clk 0:00:05.2]} 41... Qf6 {[%clk 0:00:11]} 42. Qb3
{[%clk 0:00:02]} 42... Re1+ {[%clk 0:00:11.5]} 43. Kh2 {[%clk 0:00:03]} 43...
Qe5# {[%clk 0:00:12.9]} 0-1

[Event "*** Titled Tuesday Blitz"]
[Site "Chess.com"]
[Date "2019.01.01"]
[Round "6"]
[White "TigranLPetrosyan"]
[Black "DanielNaroditsky"]
[Result "1-0"]
[WhiteElo "2845"]
[BlackElo "2917"]
[TimeControl "180+2"]
[EndTime "14:26:48 PST"]
[Termination "TigranLPetrosyan won by resignation"]

1. Nf3 {[%clk 0:03:01.9]} 1... d5 {[%clk 0:03:00.2]} 2. g3 {[%clk 0:03:03.8]}
2... g6 {[%clk 0:03:01.1]} 3. Bg2 {[%clk 0:03:04.6]} 3... Bg7 {[%clk 0:03:02.6]}
4. c4 {[%clk 0:03:06.2]} 4... dxc4 {[%clk 0:03:04.5]} 5. Na3 {[%clk 0:03:07.1]}
5... e5 {[%clk 0:03:04.8]} 6. O-O {[%clk 0:03:04.1]} 6... e4 {[%clk 0:02:54.3]}
7. Ne1 {[%clk 0:03:04.5]} 7... Nf6 {[%clk 0:02:55.8]} 8. Nxc4 {[%clk 0:03:05.8]}
8... O-O {[%clk 0:02:57]} 9. d4 {[%clk 0:03:06.1]} 9... exd3 {[%clk 0:02:46.7]}
10. Nxd3 {[%clk 0:03:02.4]} 10... Nc6 {[%clk 0:02:41]} 11. Re1 {[%clk
0:02:46.2]} 11... Re8 {[%clk 0:02:41.2]} 12. Bd2 {[%clk 0:02:40.7]} 12... Nd4
{[%clk 0:02:40.5]} 13. Bc3 {[%clk 0:02:41.7]} 13... Ne4 {[%clk 0:02:16]} 14.
Bxd4 {[%clk 0:02:41.3]} 14... Qxd4 {[%clk 0:02:14.8]} 15. Rc1 {[%clk 0:02:40.2]}
15... Nd6 {[%clk 0:01:48.9]} 16. e3 {[%clk 0:02:34]} 16... Qf6 {[%clk
0:01:49.3]} 17. Nxd6 {[%clk 0:02:16.1]} 17... Qxd6 {[%clk 0:01:51.2]} 18. Nf4
{[%clk 0:02:17.5]} 18... Qxd1 {[%clk 0:01:40.1]} 19. Rexd1 {[%clk 0:02:19.4]}
19... c6 {[%clk 0:01:42]} 20. b4 {[%clk 0:02:20.5]} 20... a5 {[%clk 0:01:36.8]}
21. a3 {[%clk 0:01:53.3]} 21... Bb2 {[%clk 0:01:04.7]} 22. Rc5 {[%clk
0:01:38.2]} 22... a4 {[%clk 0:01:04.5]} 23. Nd3 {[%clk 0:01:38.7]} 23... Bf6
{[%clk 0:01:00.1]} 24. b5 {[%clk 0:01:37.5]} 24... Be7 {[%clk 0:00:54.8]} 25.
bxc6 {[%clk 0:01:35.3]} 25... Bxc5 {[%clk 0:00:45.5]} 26. Nxc5 {[%clk
0:01:37.2]} 26... bxc6 {[%clk 0:00:23.1]} 27. Bxc6 {[%clk 0:01:37.4]} 27... Bg4
{[%clk 0:00:17.9]} 28. Rd4 {[%clk 0:01:37.8]} 28... Bf5 {[%clk 0:00:07]} 29.
Bxa8 {[%clk 0:01:35.9]} 29... Rxa8 {[%clk 0:00:08]} 30. Rxa4 {[%clk 0:01:37]}
30... Rc8 {[%clk 0:00:09.6]} 31. Rc4 {[%clk 0:01:38.1]} 31... Be6 {[%clk
0:00:10.4]} 32. Rc1 {[%clk 0:01:38.7]} 32... Bd5 {[%clk 0:00:11.1]} 33. a4
{[%clk 0:01:32]} 33... Ra8 {[%clk 0:00:12.3]} 34. Ra1 {[%clk 0:01:32.1]} 34...
Ra5 {[%clk 0:00:12.8]} 35. Nd7 {[%clk 0:01:32.2]} 35... Bc6 {[%clk 0:00:13.2]}
36. Nb6 {[%clk 0:01:33.5]} 36... Kf8 {[%clk 0:00:11.2]} 37. Nc4 {[%clk
0:01:31.8]} 37... Rxa4 {[%clk 0:00:11.6]} 38. Rxa4 {[%clk 0:01:33]} 38... Bxa4
{[%clk 0:00:13.5]} 39. e4 {[%clk 0:01:32.3]} 39... Bc6 {[%clk 0:00:14.6]} 40. f3
{[%clk 0:01:31.1]} 40... Ke7 {[%clk 0:00:12]} 41. Kf2 {[%clk 0:01:31.8]} 41...
Ke6 {[%clk 0:00:13.6]} 42. Ke3 {[%clk 0:01:26.2]} 42... f6 {[%clk 0:00:15.1]}
43. Kd4 {[%clk 0:01:22.7]} 43... Bb5 {[%clk 0:00:15.8]} 44. Ne3 {[%clk
0:01:23.8]} 44... Be2 {[%clk 0:00:16.2]} 45. f4 {[%clk 0:01:25.4]} 45... Bf3
{[%clk 0:00:17.4]} 46. Nc4 {[%clk 0:01:22.2]} 46... Be2 {[%clk 0:00:16.9]} 47.
Nb6 {[%clk 0:01:23]} 47... Bb5 {[%clk 0:00:15.1]} 48. Nd5 {[%clk 0:01:23.9]}
48... Bc6 {[%clk 0:00:16]} 49. Nc7+ {[%clk 0:01:24.5]} 49... Kd7 {[%clk
0:00:17]} 50. Na6 {[%clk 0:01:25.2]} 50... Kd6 {[%clk 0:00:18.2]} 51. Nc5 {[%clk
0:01:26.2]} 51... Ke7 {[%clk 0:00:15.9]} 52. e5 {[%clk 0:01:25.9]} 52... h5
{[%clk 0:00:08.7]} 53. Ne4 {[%clk 0:01:26.3]} 53... fxe5+ {[%clk 0:00:08]} 54.
Kxe5 {[%clk 0:01:28.2]} 54... Bd7 {[%clk 0:00:07.4]} 55. h4 {[%clk 0:01:21.8]}
55... Bf5 {[%clk 0:00:09]} 56. Nd6 {[%clk 0:01:22.9]} 56... Be6 {[%clk
0:00:09.6]} 57. f5 {[%clk 0:01:21.7]} 57... gxf5 {[%clk 0:00:07.9]} 58. Nxf5+
{[%clk 0:01:23.6]} 58... Kf7 {[%clk 0:00:09.6]} 59. Nd6+ {[%clk 0:01:24.1]}
59... Ke7 {[%clk 0:00:10.4]} 60. Ne4 {[%clk 0:01:25.3]} 60... Bg4 {[%clk
0:00:08.7]} 61. Nf6 {[%clk 0:01:24.4]} 61... Bd1 {[%clk 0:00:08.8]} 62. Kf5
{[%clk 0:01:25.9]} 1-0